bitfinex/quotes_ETHUSD_20250519
["timestamp","ask_amount","ask_price","bid_price","bid_amount"]
[1747687210891,3.95961203,2525.5,2525.3,1.1221]
[1747687211595,3.95986418,2525.4,2525.0,9.1421]
[1747687211910,5.1483476,2525.8,2525.2,13.936]
[1747687211911,3.95992555,2525.3,2525.2,13.936]
[1747687212281,3.95984399,2525.4,2525.3,8.0]
[1747687212679,3.95992555,2525.3,2525.2,5.936]
[1747687212861,3.95982279,2525.4,2525.0,9.1421]
[1747687213100,3.95992555,2525.3,2525.0,1.1421]
[1747687213275,3.96008236,2525.2,2525.1,7.797]
[1747687213694,3.96039603,2525.0,2524.9,17.57523512]
[1747687213880,3.96039603,2525.0,2524.9,24.898]
[1747687214466,3.96039603,2525.0,2524.9,32.898]
[1747687215116,3.96039603,2525.0,2524.9,24.898]
[1747687216279,3.95469932,2525.0,2524.9,24.898]
[1747687219714,1.1619,2525.9,2524.9,34.0342]
[1747687219869,3.96014997,2525.2,2525.0,8.55]
[1747687220239,3.9599039,2525.4,2525.0,8.55]
[1747687220770,3.95999479,2525.3,2525.0,8.55]
[1747687222365,3.95999479,2525.3,2525.1,0.37432828]
[1747687223449,3.95999479,2525.3,2525.2,0.37432828]
[1747687223943,3.96055289,2524.9,2524.8,0.47423512]
[1747687224100,5.12245289,2524.9,2524.8,0.47423512]
[1747687224839,3.96055289,2524.9,2524.8,0.47423512]
[1747687226039,3.96070975,2524.8,2524.7,9.0724]
[1747687226342,3.96070975,2524.8,2524.7,8.0]
[1747687226946,3.95976874,2525.4,2525.3,1.6224]
[1747687227142,3.95976874,2525.4,2525.3,8.0]
[1747687227341,3.95976874,2525.4,2525.3,7.798]
[1747687228331,3.95220882,2525.4,2525.3,7.798]
[1747687228527,4.8563537,2525.4,2525.3,7.798]
[1747687229440,3.95220882,2525.4,2525.3,7.798]
[1747687233244,5.08905788,2525.6,2524.7,18.64363512]
[1747687233450,3.96068015,2524.9,2524.8,13.733]
[1747687234018,3.96068015,2524.9,2524.8,21.733]
[1747687234546,3.96068015,2524.9,2524.8,8.0]
[1747687234751,3.96068015,2524.9,2524.8,15.881]
[1747687235453,3.96068015,2524.9,2524.8,7.881]
[1747687235846,5.09830975,2524.8,2524.7,0.63150058]
[1747687236359,9.50290582,2524.8,2524.7,0.63150058]
[1747687236533,3.96212211,2523.9,2523.8,0.47055684]
[1747687237142,3.96212211,2523.9,2523.8,8.47055684]
[1747687237662,3.96212211,2523.9,2523.8,0.47055684]
[1747687237958,3.96212211,2523.9,2523.8,8.35255684]
[1747687238522,3.96212211,2523.9,2523.8,0.84638546]
[1747687238721,4.86829372,2523.9,2523.8,0.84638546]
[1747687239671,6.03586611,2523.9,2523.8,0.84638546]
[1747687239853,10.44046218,2523.9,2523.8,0.84638546]
[1747687240172,5.09143547,2523.0,2522.9,0.47055684]
[1747687240372,5.99691898,2523.0,2522.9,0.47055684]
[1747687240580,10.40151505,2523.0,2522.9,0.47055684]
[1747687240868,18.28451505,2523.0,2522.9,0.47055684]
[1747687241071,9.49650288,2522.7,2522.6,0.63150058]
[1747687241743,9.67462861,2522.7,2522.6,0.63150058]
[1747687241933,6.9071258,2522.7,2522.6,0.63150058]
[1747687242133,14.7901258,2522.7,2522.6,0.63150058]
[1747687242329,6.9071258,2522.7,2522.6,0.63150058]
[1747687242696,3.96400681,2522.7,2522.6,0.63150058]
[1747687242849,3.96374929,2522.9,2522.6,0.63150058]
[1747687243166,3.96400681,2522.7,2522.6,8.51450058]
[1747687243571,3.96400681,2522.7,2522.6,7.883]
[1747687244748,3.96431301,2522.6,2522.1,8.0]
[1747687245071,3.96400681,2522.7,2522.2,7.886]
[1747687245378,3.96510705,2522.0,2521.9,17.101]
[1747687245534,3.96510705,2522.0,2521.9,32.987]
[1747687245733,1.0883,2523.2,2522.0,12.51497438]
[1747687245986,3.96395025,2522.8,2522.2,0.55]
[1747687246184,3.96405376,2522.7,2522.2,12.51475302]
[1747687246340,3.96405376,2522.7,2522.2,8.55]
[1747687246537,3.96405376,2522.7,2522.2,12.51477983]
[1747687246742,3.96405376,2522.7,2522.4,0.7]
[1747687246940,3.96405376,2522.7,2522.5,7.887]
[1747687247142,3.96416395,2522.6,2522.5,15.887]
[1747687247484,3.96408089,2522.7,2522.5,15.887]
[1747687247882,3.96416395,2522.6,2522.5,15.887]
[1747687248089,3.96408645,2522.7,2522.5,15.887]
[1747687248238,3.96355813,2523.0,2522.5,15.887]
[1747687248444,3.96390101,2522.8,2522.5,15.887]
[1747687249587,3.96416395,2522.6,2522.5,15.887]
[1747687250381,1.0883,2523.2,2522.5,15.887]
[1747687250538,3.96348077,2523.1,2522.6,13.04503768]
[1747687250734,3.96228852,2523.8,2523.0,8.0]
[1747687250735,3.96299893,2523.4,2523.0,8.0]
[1747687250938,1.0795,2523.8,2523.2,9.0021]
[1747687251139,3.96276671,2523.5,2523.2,9.0021]
[1747687251740,3.96275014,2523.5,2523.2,9.0021]
[1747687252072,3.96297801,2523.4,2523.2,9.0021]
[1747687255176,3.9626564,2523.6,2523.2,9.0021]
[1747687255340,3.96276552,2523.5,2523.2,9.0021]
[1747687255539,5.04191552,2524.1,2523.2,9.0021]
[1747687255852,3.9625704,2523.7,2523.2,9.0021]
[1747687256373,3.96279549,2523.5,2523.2,9.0021]
[1747687257574,3.96275257,2523.5,2523.2,9.0021]
[1747687258756,3.96275257,2523.5,2523.4,0.7]
[1747687260286,3.96267649,2523.6,2523.4,0.7]
[1747687260483,3.96275014,2523.5,2523.4,0.7]
[1747687260847,3.96264033,2523.6,2523.4,0.7]
[1747687261161,3.96275014,2523.5,2523.4,0.7]
[1747687261556,3.96267267,2523.6,2523.4,0.7]
[1747687261765,3.96275014,2523.5,2523.4,0.7]
[1747687263589,1.0098,2523.1,2522.0,1.0512]
[1747687263884,3.96394077,2522.8,2522.1,3.96483125]
[1747687264182,4.97272764,2523.4,2522.6,8.0]
[1747687264385,3.96385014,2522.8,2522.6,8.0]
[1747687264590,3.96400681,2522.7,2522.6,8.0]
[1747687264767,3.96416395,2522.6,2522.5,1.69790058]
[1747687264953,3.96416395,2522.6,2522.5,9.88390058]
[1747687265153,3.96416395,2522.6,2522.5,9.2524]
[1747687265485,3.96416395,2522.6,2522.5,9.0664]
[1747687265686,3.96416395,2522.6,2522.5,17.2524]
[1747687265982,3.96416395,2522.6,2522.5,9.0664]
[1747687266155,3.96416395,2522.6,2522.5,16.186]
[1747687266597,3.96211168,2524.0,2522.8,0.55]
[1747687266779,3.96350564,2523.1,2522.8,0.55]
[1747687267860,3.96347163,2523.1,2522.8,0.55]
[1747687268202,3.96347163,2523.1,2522.9,0.37572668]
[1747687268377,3.9631361,2523.3,2523.0,16.187]
[1747687268580,3.96229997,2523.8,2523.1,8.0]
[1747687268884,3.96290856,2523.4,2523.1,0.55]
[1747687269112,1.27322594,2525.5,2523.5,0.55]
[1747687269250,5.781964,2526.6,2525.0,1.0472]
[1747687269251,0.4456863,2525.6,2525.0,1.0472]
[1747687269457,0.4456863,2525.6,2525.2,8.0]
[1747687269684,4.40514861,2525.6,2525.3,2.59812565]
[1747687269953,1.26323829,2525.7,2525.3,0.55]
[1747687270153,1.26323829,2525.7,2525.4,8.472]
[1747687270154,5.22253699,2525.7,2525.4,8.472]
[1747687270381,3.95961195,2525.5,2525.2,8.0]
[1747687270571,3.95961195,2525.5,2525.3,8.472]
[1747687270982,1.0665,2525.9,2525.4,8.0]
[1747687271182,3.95930548,2525.7,2525.4,8.0]
[1747687271688,3.95921031,2525.8,2525.4,8.0]
[1747687271877,1.0124,2526.3,2525.2,8.0]
[1747687272061,1.0124,2526.3,2525.3,16.472]
[1747687272062,3.95976874,2525.4,2525.3,16.472]
[1747687272262,3.95964334,2525.5,2525.3,16.472]
[1747687272660,3.95888424,2526.0,2525.3,16.472]
[1747687272978,0.39588842,2525.9,2525.4,8.0]
[1747687273170,3.95917662,2525.8,2525.4,8.0]
[1747687273474,3.95917662,2525.8,2525.3,8.472]
[1747687274263,3.95917662,2525.8,2525.4,8.55]
[1747687274465,1.0124,2526.3,2525.6,0.55]
[1747687274698,6.770164,2526.6,2525.8,0.55]
[1747687274900,3.95828428,2526.4,2526.0,8.55]
[1747687275192,13.12555075,2526.6,2526.0,8.55]
[1747687275193,3.95808645,2526.5,2526.0,8.55]
[1747687275357,3.95822393,2526.4,2526.0,8.55]
[1747687275790,3.95841465,2526.3,2526.0,8.55]
[1747687276475,3.95821075,2526.4,2526.0,8.55]
[1747687276800,3.95835807,2526.3,2526.0,8.55]
[1747687276994,3.95820139,2526.4,2525.6,8.9742]
[1747687277163,3.95804472,2526.5,2526.0,12.50877166]
[1747687277364,9.73985702,2526.6,2526.0,8.55]
[1747687277564,3.95817049,2526.5,2526.0,8.55]
[1747687277875,3.95817049,2526.5,2526.0,12.5088144]
[1747687278069,5.781964,2526.6,2526.4,0.55]
[1747687278278,5.781964,2526.6,2526.5,17.018]
[1747687278678,5.781964,2526.6,2526.5,8.55]
[1747687278881,9.73985207,2526.6,2526.5,22.954]
[1747687279110,5.781964,2526.6,2526.5,22.954]
[1747687279673,9.73985207,2526.6,2526.5,22.954]
[1747687280006,9.73985207,2526.6,2526.5,22.402]
[1747687280502,9.73985207,2526.6,2526.5,22.401]
[1747687280866,3.95835807,2526.3,2526.2,8.9742]
[1747687281367,3.95827001,2526.4,2526.2,23.3752]
[1747687281779,3.95805581,2526.5,2526.2,23.3752]
[1747687282071,3.95820616,2526.4,2526.2,23.3752]
[1747687283093,3.95807801,2526.5,2526.2,23.3752]
[1747687283407,5.781964,2526.6,2526.5,3.95804472]
[1747687283712,5.781964,2526.6,2526.5,0.55]
[1747687283871,5.781964,2526.6,2526.5,2.859]
[1747687284072,5.781964,2526.6,2526.5,0.55]
[1747687284269,5.781964,2526.6,2526.5,22.949]
[1747687285016,5.781964,2526.6,2526.5,26.90704472]
[1747687285208,5.781964,2526.6,2526.5,23.46122419]
[1747687285779,5.781964,2526.6,2526.5,24.16122419]
[1747687285988,5.781964,2526.6,2526.5,23.46122419]
[1747687286997,5.781964,2526.6,2526.5,9.06222419]
[1747687287208,5.781964,2526.6,2526.5,23.46022419]
[1747687289212,5.781964,2526.6,2526.5,27.41826891]
[1747687289406,5.781964,2526.6,2526.5,9.06222419]
[1747687289708,5.781964,2526.6,2526.5,23.45822419]
[1747687290472,5.781964,2526.6,2526.5,9.06222419]
[1747687290806,5.781964,2526.6,2526.5,23.45822419]
[1747687291185,5.781964,2526.6,2526.5,24.15822419]
[1747687291386,5.781964,2526.6,2526.5,24.15722419]
[1747687292504,9.73985207,2526.6,2526.5,22.395]
[1747687292827,5.781964,2526.6,2526.5,22.395]
[1747687293002,5.781964,2526.6,2526.5,8.0]
[1747687293207,5.781964,2526.6,2526.5,22.395]
[1747687293804,5.781964,2526.6,2526.5,16.462]
[1747687294003,5.781964,2526.6,2526.5,8.0]
[1747687294197,9.73985207,2526.6,2526.5,22.395]
[1747687294402,5.781964,2526.6,2526.5,22.395]
[1747687295605,9.73985207,2526.6,2526.5,8.0]
[1747687295976,9.73985207,2526.6,2526.5,22.394]
[1747687296282,9.73985207,2526.6,2526.5,23.094]
[1747687297109,5.781964,2526.6,2526.5,23.094]
[1747687297309,5.781964,2526.6,2526.0,5.932]
[1747687297310,9.1090862,2526.6,2526.0,5.932]
[1747687297619,3.95882818,2526.0,2525.9,8.462]
[1747687297815,3.95882818,2526.0,2525.9,14.394]
[1747687297816,4.94412818,2526.0,2525.9,14.394]
[1747687298199,3.95914165,2525.8,2525.3,0.945]
[1747687298822,3.95914165,2525.8,2525.0,5.21406279]
[1747687299029,3.95914165,2525.8,2525.0,9.25367955]
[1747687299327,3.95914165,2525.8,2525.7,0.37453915]
[1747687299531,5.24537003,2525.8,2525.7,0.37453915]
[1747687300125,0.9832,2526.3,2525.7,8.37453915]
[1747687300354,3.95846195,2526.3,2525.8,0.55]
[1747687300626,3.95811595,2526.5,2525.9,8.0]
[1747687300924,3.95809527,2526.5,2526.0,0.55]
[1747687301100,3.95809527,2526.5,2526.2,8.0]
[1747687301303,3.95809527,2526.5,2526.3,5.933]
[1747687301693,3.95809527,2526.5,2526.3,6.77545185]
[1747687302027,3.95820139,2526.4,2526.3,0.84245185]
[1747687302335,4.94140139,2526.4,2526.3,0.84245185]
[1747687303586,0.9832,2526.4,2526.3,0.84245185]
[1747687303828,9.7399454,2526.6,2526.3,0.84245185]
[1747687303993,9.73993061,2526.6,2526.4,8.315]
[1747687304202,3.95804472,2526.5,2526.4,16.315]
[1747687305744,9.73987356,2526.6,2526.4,16.68953915]
[1747687306046,3.95804472,2526.5,2526.4,16.68953915]
[1747687306245,5.781964,2526.6,2526.4,24.16173915]
[1747687306443,5.781964,2526.6,2526.5,8.55]
[1747687306604,5.781964,2526.6,2526.5,12.50804472]
[1747687306805,5.781964,2526.6,2526.5,8.55]
[1747687307209,5.781964,2526.6,2526.5,8.0]
[1747687307405,5.781964,2526.6,2526.5,11.95804472]
[1747687307607,5.781964,2526.6,2526.5,12.33258387]
[1747687308537,5.781964,2526.6,2526.5,8.37453915]
[1747687308911,5.781964,2526.6,2526.5,12.88258387]
[1747687309320,4.83131369,2526.7,2526.6,13.43618807]
[1747687309533,4.25427291,2526.8,2526.7,12.50773142]
[1747687309738,4.25427291,2526.8,2526.7,56.46578642]
[1747687310218,5.9531718,2526.9,2526.8,12.50757479]
[1747687310414,1.06376923,2527.0,2526.9,13.43571818]
[1747687310643,1.06376923,2527.0,2526.9,70.05260118]
[1747687310838,1.06376923,2527.0,2526.9,61.73860118]
[1747687311138,1.06376923,2527.0,2526.9,38.03076533]
[1747687311342,0.11524494,2527.0,2526.9,46.34476533]
[1747687311538,0.11524494,2527.0,2526.9,13.81025733]
[1747687311740,3.81412991,2527.1,2527.0,12.50726157]
[1747687311905,3.81412991,2527.1,2527.0,33.26007157]
[1747687312821,3.81412991,2527.1,2527.0,42.35571557]
[1747687313017,3.81412991,2527.1,2527.0,28.48525472]
[1747687313222,3.81412991,2527.1,2527.0,17.26952972]
[1747687313439,3.81412991,2527.1,2527.0,0.37453915]
[1747687313628,7.77123489,2527.1,2527.0,14.61853915]
[1747687314221,7.77123489,2527.1,2527.0,22.61853915]
[1747687314442,7.77123489,2527.1,2527.0,14.61853915]
[1747687314947,10.5154366,2527.1,2527.0,22.61853915]
[1747687315248,7.77123489,2527.1,2527.0,14.61853915]
[1747687315410,7.77123489,2527.1,2527.0,22.61853915]
[1747687316562,7.77123489,2527.1,2527.0,8.37453915]
[1747687316763,7.77123489,2527.1,2527.0,22.61853915]
[1747687316969,7.77123489,2527.1,2526.7,0.46650287]
[1747687316970,8.71393489,2527.1,2526.7,0.46650287]
[1747687317116,3.95757479,2526.8,2526.7,0.46650287]
[1747687317317,2.68130366,2527.0,2526.7,0.46650287]
[1747687317650,3.95757479,2526.8,2526.7,0.46650287]
[1747687318011,3.95757479,2526.8,2526.6,8.313]
[1747687318223,3.95759764,2526.8,2526.3,12.87548854]
[1747687318431,3.95759764,2526.8,2526.7,5.931]
[1747687318635,3.95755359,2526.9,2526.7,22.244]
[1747687319355,3.95734343,2527.0,2526.7,22.244]
[1747687319648,3.95726496,2527.0,2526.7,22.244]
[1747687319860,3.81412991,2527.1,2527.0,4.50726157]
[1747687320159,3.81412991,2527.1,2527.0,14.83583642]
[1747687320314,3.81412991,2527.1,2527.0,31.43148442]
[1747687320645,3.81412991,2527.1,2527.0,29.15929942]
[1747687320826,3.81412991,2527.1,2527.0,43.40429942]
[1747687321214,3.81412991,2527.1,2527.0,29.15929942]
[1747687321409,3.81412991,2527.1,2527.0,43.40329942]
[1747687322324,2.39148631,2527.1,2527.0,43.40329942]
[1747687323921,2.39148631,2527.1,2527.0,27.18806157]
[1747687324228,2.39148631,2527.1,2527.0,57.49978957]
[1747687324746,5.179847,2527.2,2527.1,3.95710498]
[1747687324917,5.35411365,2527.4,2527.3,13.48579183]
[1747687325455,5.35411365,2527.4,2527.3,61.78867483]
[1747687326265,0.32775766,2527.6,2527.5,0.7902]
[1747687326419,0.70690977,2528.1,2527.8,14.98700917]
[1747687326624,0.70690977,2528.1,2528.0,14.8866962]
[1747687326824,0.70690977,2528.1,2528.0,61.77955503]
[1747687327031,0.70690977,2528.1,2528.0,62.10976966]
[1747687327367,0.9644,2529.8,2529.1,0.979]
[1747687327661,0.9644,2529.8,2529.3,8.0]
[1747687327847,0.49172343,2529.7,2529.3,8.0]
[1747687328049,4.44488075,2529.7,2529.3,8.0]
[1747687328244,3.95328672,2529.6,2529.4,14.566]
[1747687328424,3.95306921,2529.7,2529.5,8.0]
[1747687328624,3.95318175,2529.7,2529.5,7.75]
[1747687328859,3.95366306,2529.3,2529.2,17.077]
[1747687329079,3.95366306,2529.3,2529.2,31.643]
[1747687329243,3.95442731,2528.9,2528.8,17.077]
[1747687329429,3.95442731,2528.9,2528.8,31.643]
[1747687329759,3.95289005,2529.8,2528.8,31.643]
[1747687329760,4.8870492,2530.1,2528.8,43.641528]
[1747687329968,3.95311266,2529.7,2529.0,0.55]
[1747687330124,0.9345,2530.1,2529.0,0.55]
[1747687330330,1.36899856,2531.4,2529.0,0.55]
[1747687330331,0.9345,2530.5,2529.6,5.4940928]
[1747687330650,3.9520685,2530.4,2529.9,0.55]
[1747687330849,0.9345,2530.5,2529.9,8.0]
[1747687331023,4.95226071,2530.2,2529.9,8.0]
[1747687331223,3.95243589,2530.1,2529.9,8.0]
[1747687331422,1.89042302,2530.2,2529.9,8.0]
[1747687331856,1.89042302,2530.2,2529.9,11.95271749]
[1747687332063,1.0,2530.2,2529.9,8.0]
[1747687332763,4.95229571,2530.2,2529.9,8.0]
[1747687332934,3.95256916,2530.0,2529.9,8.0]
[1747687333136,3.9527254,2529.9,2529.8,17.074]
[1747687333472,4.74322361,2529.9,2529.8,17.074]
[1747687333673,4.74322361,2529.9,2529.2,0.4619647]
[1747687333674,3.95366306,2529.3,2529.2,0.4619647]
[1747687333981,5.30856306,2529.3,2529.2,17.3789647]
[1747687334131,6.23477177,2529.3,2529.2,17.3789647]
[1747687334332,6.23477177,2529.3,2529.2,0.4619647]
[1747687336156,3.95397572,2529.1,2529.0,25.07]
[1747687336461,3.95397572,2529.1,2529.0,33.986]
[1747687336766,3.95397572,2529.1,2529.0,25.07]
[1747687337072,4.9728661,2529.1,2529.0,25.986]
[1747687337253,4.9728661,2529.1,2529.0,17.07]
[1747687337457,4.9728661,2529.1,2529.0,25.986]
[1747687337838,10.8480879,2529.1,2529.0,17.07]
[1747687339741,6.2653661,2529.1,2529.0,17.07]
[1747687339948,3.95350676,2529.4,2529.1,8.0]
[1747687340170,0.005,2529.6,2529.2,1.9412]
[1747687340356,0.005,2529.6,2529.4,8.0]
[1747687340560,0.005,2529.6,2529.5,16.917]
[1747687341086,3.95819418,2529.6,2529.5,16.917]
[1747687341439,4.74932009,2529.6,2529.5,16.917]
[1747687341662,3.95397572,2529.1,2529.0,30.997]
[1747687341861,3.95397572,2529.1,2529.0,17.07]
[1747687342210,3.95397572,2529.1,2529.0,25.986]
[1747687342711,3.95397572,2529.1,2529.0,33.986]
[1747687342909,4.87782793,2529.1,2529.0,33.986]
[1747687343869,4.87782793,2529.1,2529.0,25.986]
[1747687344377,3.95397572,2529.1,2529.0,25.986]
[1747687344567,3.95397572,2529.1,2529.0,33.986]
[1747687345702,3.95397572,2529.1,2529.0,25.07]
[1747687345894,3.95397572,2529.1,2529.0,17.07]
[1747687348634,3.95397572,2529.1,2529.0,25.986]
[1747687348798,4.87782523,2529.1,2529.0,25.986]
[1747687349915,4.87782523,2529.1,2528.3,8.0]
[1747687349916,3.95519634,2528.4,2528.3,8.0]
[1747687350237,3.95519634,2528.4,2528.3,8.916]
[1747687350532,3.95522683,2528.3,2528.2,17.069]
[1747687350921,3.95522683,2528.3,2528.2,25.985]
[1747687352322,3.95522683,2528.3,2528.2,26.35760368]
[1747687355851,6.12856915,2528.3,2528.2,26.35760368]
[1747687357527,6.12856915,2528.3,2528.2,25.985]
[1747687358355,6.12856915,2528.3,2527.6,0.4619647]
[1747687358356,3.95616568,2527.7,2527.6,0.4619647]
[1747687358540,5.33846568,2527.7,2527.6,0.4619647]
[1747687359463,6.26791663,2527.7,2527.6,0.4619647]
[1747687360316,10.85063843,2527.7,2527.6,0.4619647]
[1747687360742,10.76863843,2527.7,2527.6,0.4619647]
[1747687361278,3.95679183,2527.3,2527.2,17.073]
[1747687361575,5.93547706,2527.3,2527.2,17.073]
[1747687361786,5.25709183,2527.3,2527.2,17.073]
[1747687362379,3.95804472,2526.5,2526.4,18.4524]
[1747687362586,3.95804472,2526.5,2526.4,33.0844]
[1747687362873,3.95804472,2526.5,2526.4,39.707]
[1747687363045,3.95804472,2526.5,2526.4,17.075]
[1747687365150,3.95804472,2526.5,2525.3,0.4619647]
[1747687365151,1.271,2526.3,2525.9,8.705]
[1747687365349,3.95882818,2526.0,2525.9,8.705]
[1747687366192,3.95976874,2525.4,2525.3,17.5389647]
[1747687366392,3.95976874,2525.4,2525.3,26.2459647]
[1747687366596,3.95976874,2525.4,2525.3,34.2459647]
[1747687366761,3.95961621,2525.5,2525.4,8.0]
[1747687367982,3.95961621,2525.5,2525.4,16.707]
[1747687368175,3.95961621,2525.5,2525.4,8.707]
[1747687368862,3.95961621,2525.5,2525.3,17.077]
[1747687368863,5.23076874,2525.4,2525.3,17.077]
[1747687369062,3.96008236,2525.2,2525.1,8.707]
[1747687374400,3.96086663,2524.7,2524.6,8.0]
[1747687374615,5.33342352,2524.6,2524.5,17.081]
[1747687375098,3.96167263,2524.2,2524.1,8.713]
[1747687376081,3.96259312,2523.6,2523.2,8.713]
[1747687376911,3.96259312,2523.6,2523.0,1.2937]
[1747687377097,3.96259312,2523.6,2523.5,9.1749647]
[1747687377301,10.72092587,2524.2,2523.6,8.0]
[1747687377302,3.96180816,2524.1,2523.6,8.0]
[1747687377505,1.3842,2524.2,2523.6,8.0]
[1747687377818,3.9624361,2523.7,2523.6,9.2937]
[1747687378022,3.96170169,2524.2,2523.6,24.213665]
[1747687378326,3.96181458,2524.1,2523.7,0.01985849]
[1747687378500,3.96197423,2524.0,2523.8,17.096]
[1747687378909,3.96207356,2524.0,2523.8,17.096]
[1747687379110,3.96133734,2524.4,2523.8,25.096]
[1747687379111,3.96212211,2523.9,2523.8,25.096]
[1747687379716,3.96202272,2524.0,2523.8,25.096]
[1747687379928,3.96162234,2524.3,2523.9,8.0]
[1747687380110,3.96128018,2524.5,2524.1,9.2765]
[1747687380285,3.96117873,2524.6,2524.1,9.2765]
[1747687380488,3.96141477,2524.4,2524.1,9.2765]
[1747687380790,3.96151192,2524.3,2524.1,9.2765]
[1747687381399,1.3604,2524.9,2524.1,9.2765]
[1747687381599,3.96080554,2524.8,2524.4,8.0]
[1747687381831,3.96086663,2524.7,2524.6,9.3716]
[1747687382037,3.96086663,2524.7,2524.6,8.0]
[1747687384229,3.96103085,2524.6,2524.2,8.55]
[1747687384434,3.96119438,2524.5,2524.2,0.55]
[1747687384938,3.96134291,2524.4,2524.2,0.55]
[1747687385337,3.96118043,2524.5,2524.4,8.0]
[1747687385514,3.96100411,2524.7,2524.4,8.0]
[1747687385928,3.96118043,2524.5,2524.4,8.0]
[1747687386834,3.960923,2524.7,2524.4,8.0]
[1747687387038,3.96005132,2525.3,2524.5,1.3128]
[1747687387342,3.96070975,2524.8,2524.7,1.2761]
[1747687387537,3.96070975,2524.8,2524.7,16.716]
[1747687388335,3.96118043,2524.5,2524.4,1.2761]
[1747687388537,3.96118043,2524.5,2524.4,8.716]
[1747687388842,5.36093734,2524.4,2524.3,17.098]
[1747687389040,3.9622791,2523.8,2523.7,9.33195293]
[1747687389537,3.9622791,2523.8,2523.7,17.33195293]
[1747687390105,3.9622791,2523.8,2523.7,17.70507905]
[1747687392219,3.9622791,2523.8,2523.7,17.08912612]
[1747687393634,3.9622791,2523.8,2523.7,9.08912612]
[1747687393817,4.89180187,2523.8,2523.7,8.716]
[1747687394159,4.89180187,2523.8,2523.3,26.09425556]
[1747687394160,3.96290718,2523.4,2523.3,26.09425556]
[1747687394449,5.32610718,2523.4,2523.3,26.09425556]
[1747687395160,5.32610718,2523.4,2523.3,26.00155406]
[1747687395524,6.65125499,2523.4,2523.3,8.90355406]
[1747687395941,6.65125499,2523.4,2523.3,8.529]
[1747687397339,5.32610718,2523.4,2523.3,8.529]
[1747687400045,3.96290718,2523.4,2523.3,8.529]
[1747687401330,3.96384969,2522.8,2522.7,8.46725556]
[1747687401528,3.96384969,2522.8,2522.7,0.46725556]
[1747687402461,3.96384969,2522.8,2522.7,0.84140682]
[1747687403161,5.23944969,2522.8,2522.7,0.84140682]
[1747687404350,5.23944969,2522.8,2522.6,8.532]
[1747687404351,3.96400681,2522.7,2522.6,8.90615126]
[1747687405565,3.96400681,2522.7,2522.6,8.532]
[1747687406763,3.96400681,2522.7,2522.5,17.101]
[1747687406764,3.96416395,2522.6,2522.5,17.101]
[1747687406934,3.96416395,2522.6,2522.5,25.634]
[1747687409841,5.31206395,2522.6,2522.5,25.634]
[1747687411378,6.23967103,2522.6,2522.5,25.634]
[1747687411849,5.31206395,2522.6,2522.5,8.533]
[1747687412670,3.96416395,2522.6,2522.5,8.533]
[1747687413361,3.96435681,2522.5,2521.9,8.0]
[1747687413564,3.96493926,2522.2,2521.9,17.8334]
[1747687413758,1.3479,2522.6,2521.9,17.8334]
[1747687413759,3.96418243,2522.6,2521.9,17.8334]
[1747687413961,3.96470203,2522.3,2521.9,17.8334]
[1747687414166,3.96486128,2522.2,2521.9,17.8334]
[1747687414339,3.96507065,2522.1,2522.0,0.37325859]
[1747687414539,3.96507065,2522.1,2522.0,16.90825859]
[1747687414959,5.31175041,2522.8,2522.0,16.90825859]
[1747687415165,3.96491793,2522.2,2522.0,16.90825859]
[1747687415563,3.96491793,2522.2,2522.1,0.37325859]
[1747687416454,3.96479264,2522.2,2522.1,0.37325859]
[1747687416873,3.96471242,2522.3,2522.1,0.37325859]
[1747687417082,3.96479264,2522.2,2522.1,0.37325859]
[1747687417281,3.96479264,2522.2,2522.1,8.90825859]
[1747687417579,3.96479264,2522.2,2522.1,16.90825859]
[1747687418046,3.96466917,2522.3,2522.2,8.0]
[1747687419383,3.96466917,2522.3,2522.2,8.37325859]
[1747687420197,3.96466917,2522.3,2522.2,0.37325859]
[1747687422162,3.96466917,2522.3,2522.2,8.73325859]
[1747687425091,6.0541873,2522.3,2522.2,0.37325859]
[1747687425701,10.46400164,2522.3,2522.2,0.37325859]
[1747687426395,3.96494984,2522.1,2522.0,0.37325859]
[1747687427992,3.96510705,2522.0,2521.9,8.361]
[1747687428996,3.96557877,2521.7,2521.6,0.46725556]
[1747687429196,3.96557877,2521.7,2521.6,8.82825556]
[1747687430301,3.96557877,2521.7,2521.6,8.7370853]
[1747687431800,3.96557877,2521.7,2521.6,16.7370853]
[1747687433302,3.96557877,2521.7,2521.6,17.20434086]
[1747687433804,3.96557877,2521.7,2521.6,17.20534086]
[1747687434424,3.96526428,2521.9,2521.8,1.2946]
[1747687434998,3.96526428,2521.9,2521.8,1.6706853]
[1747687435614,3.96526428,2521.9,2521.8,0.3760853]
[1747687436078,3.96526428,2521.9,2521.8,16.7380853]
[1747687439999,3.96526428,2521.9,2521.8,17.20534086]
[1747687442183,3.96515986,2522.0,2521.8,17.20534086]
[1747687442481,3.96515986,2522.0,2521.9,8.0]
[1747687443700,3.96515986,2522.0,2521.9,8.84334086]
[1747687445002,3.9648589,2522.2,2521.9,8.84334086]
[1747687445200,3.96510705,2522.0,2521.9,10.14034086]
[1747687445880,3.96510705,2522.0,2521.9,0.84334086]
[1747687446085,4.75811359,2522.0,2521.9,0.84334086]
[1747687447526,4.75811359,2522.0,2521.9,0.46725556]
[1747687449435,3.96542152,2521.8,2521.7,0.3760853]
[1747687451325,3.96589331,2521.5,2521.4,0.46725556]
[1747687451529,5.15561755,2521.5,2521.4,0.46725556]
[1747687452696,3.96589331,2521.5,2521.4,0.46725556]
[1747687453244,3.9662079,2521.3,2521.2,1.3871]
[1747687453732,3.96580026,2521.6,2521.2,1.3871]
[1747687453915,3.96580026,2521.6,2521.2,9.3871]
[1747687454229,3.96580026,2521.6,2521.3,0.55]
[1747687454230,3.96576326,2521.6,2521.3,0.55]
[1747687457129,3.96549105,2521.8,2521.4,1.88695293]
[1747687457427,3.9655796,2521.7,2521.6,8.0]
[1747687458010,3.96527402,2521.9,2521.6,8.0]
[1747687458321,3.96527402,2521.9,2521.8,8.0]
[1747687458494,1.3637,2522.4,2521.9,1.3268]